bitfinex/quotes_SOLUSD_20241214
["timestamp","ask_amount","ask_price","bid_price","bid_amount"]
[1734199088551,7.9007,218.47,218.32,8.84604431]
[1734199088920,9.6541,218.43,218.32,8.84604431]
[1734199089138,9.6541,218.43,218.33,38.84604431]
[1734199090619,9.6541,218.43,218.33,8.84604431]
[1734199091327,9.6541,218.43,218.34,8.84604431]
[1734199092250,9.6541,218.43,218.33,8.84604431]
[1734199093425,20.0,218.44,218.33,8.84604431]
[1734199093647,20.0,218.43,218.33,8.84604431]
[1734199093845,0.12549,218.42,218.3,0.8122989]
[1734199094037,21.78469,218.38,218.32,30.0]
[1734199094238,21.78469,218.38,218.29,8.84604431]
[1734199097128,21.78469,218.38,218.28,8.84604431]
[1734199097937,21.78469,218.38,218.29,8.84604431]
[1734199098660,21.78469,218.38,218.28,8.84604431]
[1734199100276,21.78469,218.38,218.29,8.84604431]
[1734199101336,6.63949,218.36,218.23,134.7]
[1734199101655,20.0,218.32,218.25,30.0]
[1734199102249,20.12549,218.32,218.25,30.0]
[1734199102427,0.12549,218.32,218.23,8.84604431]
[1734199102829,1.7884,218.31,218.2,0.12549]
[1734199103067,1.7884,218.31,218.23,8.84604431]
[1734199103739,0.12549,218.3,218.22,8.84604431]
[1734199103930,0.12549,218.3,218.23,30.0]
[1734199104143,0.12549,218.3,218.22,8.84604431]
[1734199105445,1.7884,218.31,218.22,8.84604431]
[1734199105665,1.7884,218.31,218.23,8.84604431]
[1734199106947,20.0,218.33,218.27,8.84604431]
[1734199108143,20.0,218.33,218.26,8.84604431]
[1734199112868,20.0,218.33,218.25,8.84604431]
[1734199113245,20.0,218.33,218.26,8.84604431]
[1734199113451,20.0,218.33,218.25,8.84604431]
[1734199115181,20.0,218.33,218.26,8.84604431]
[1734199116196,8.2142,218.36,218.3,8.84604431]
[1734199116360,7.8055,218.43,218.33,8.84604431]
[1734199116691,7.8055,218.43,218.35,8.84604431]
[1734199116868,7.8055,218.43,218.34,8.84604431]
[1734199117949,23.902374,218.42,218.34,8.84604431]
[1734199118150,23.902374,218.42,218.33,8.84604431]
[1734199118758,20.0,218.39,218.33,8.84604431]
[1734199118960,20.0,218.39,218.34,8.84604431]
[1734199119786,7.8055,218.43,218.36,8.84604431]
[1734199121554,7.8055,218.43,218.38,8.84604431]
[1734199122086,7.8055,218.43,218.4,8.84604431]
[1734199122259,7.8055,218.43,218.31,136.4277]
[1734199122453,7.8055,218.43,218.36,8.84604431]
[1734199123089,7.8055,218.43,218.37,8.84604431]
[1734199125764,7.8055,218.43,218.32,0.68678616]
[1734199125765,7.8055,218.43,218.36,8.84604431]
[1734199126164,7.8055,218.43,218.37,8.84604431]
[1734199129590,6.1053,218.43,218.39,8.84604431]
[1734199130092,6.1053,218.43,218.38,8.84604431]
[1734199130964,0.12549,218.42,218.32,134.7]
[1734199131304,20.0,218.39,218.3,8.84604431]
[1734199131604,20.0,218.39,218.31,8.84604431]
[1734199132882,20.0,218.39,218.32,8.84604431]
[1734199133587,20.0,218.39,218.35,8.84604431]
[1734199133962,1.728,218.4,218.36,8.84604431]
[1734199134182,21.728,218.4,218.36,8.84604431]
[1734199137297,6.1053,218.43,218.37,8.84604431]
[1734199137833,6.1053,218.43,218.36,8.84604431]
[1734199138318,6.1053,218.43,218.37,8.84604431]
[1734199139495,20.0,218.4,218.26,1.6498]
[1734199139698,0.12549,218.38,218.28,30.0]
[1734199139906,0.12549,218.38,218.28,38.84604431]
[1734199140207,0.12549,218.39,218.3,8.84604431]
[1734199140979,0.12549,218.39,218.31,8.84604431]
[1734199141703,0.12549,218.39,218.3,8.84604431]
[1734199141886,0.12549,218.39,218.29,8.84604431]
[1734199142508,0.12549,218.39,218.31,8.84604431]
[1734199143688,0.12549,218.39,218.32,8.84604431]
[1734199144303,20.0,218.4,218.33,8.84604431]
[1734199144482,20.0,218.4,218.35,8.84604431]
[1734199144679,6.1053,218.43,218.38,8.84604431]
[1734199144895,6.1053,218.43,218.39,8.84604431]
[1734199145595,6.1053,218.43,218.33,0.68675443]
[1734199145906,6.1053,218.43,218.34,8.84604431]
[1734199146079,23.902374,218.42,218.33,8.84604431]
[1734199147094,23.902374,218.42,218.32,8.84604431]
[1734199147295,20.0,218.39,218.32,8.84604431]
[1734199147823,23.902374,218.38,218.26,1.6498]
[1734199148111,23.902374,218.38,218.29,8.84604431]
[1734199148490,23.902374,218.38,218.28,8.84604431]
[1734199148689,23.902374,218.38,218.29,8.84604431]
[1734199149123,23.902374,218.38,218.3,8.84604431]
[1734199149826,0.12549,218.39,218.3,8.84604431]
[1734199150129,20.0,218.4,218.31,8.84604431]
[1734199150323,20.0,218.4,218.33,8.84604431]
[1734199150496,20.0,218.4,218.34,8.84604431]
[1734199151107,20.0,218.4,218.33,8.84604431]
[1734199152091,20.0,218.4,218.28,23.776884]
[1734199152092,20.0,218.4,218.34,8.84604431]
[1734199153600,20.0,218.4,218.35,8.84604431]
[1734199153803,6.1053,218.43,218.36,8.84604431]
[1734199154393,6.1053,218.43,218.37,8.84604431]
[1734199154915,6.1053,218.43,218.38,8.84604431]
[1734199155933,6.1053,218.43,218.37,8.84604431]
[1734199156429,6.1053,218.43,218.38,8.84604431]
[1734199156829,6.1053,218.43,218.39,8.84604431]
[1734199157010,6.1053,218.43,218.38,8.84604431]
[1734199158220,6.1053,218.43,218.32,134.7]
[1734199158422,6.1053,218.43,218.36,8.84604431]
[1734199158641,6.1053,218.43,218.35,8.84604431]
[1734199159503,6.5977,218.46,218.35,8.84604431]
[1734199159708,6.5977,218.46,218.39,8.84604431]
[1734199160138,6.5977,218.46,218.38,8.84604431]
[1734199162630,6.5977,218.46,218.32,0.93770884]
[1734199162631,6.5977,218.46,218.33,20.0]
[1734199162817,0.12549,218.45,218.36,8.84604431]
[1734199164521,0.12549,218.45,218.29,0.68682352]
[1734199164522,23.902374,218.45,218.37,8.84604431]
[1734199165121,23.902374,218.45,218.36,8.84604431]
[1734199165324,20.0,218.42,218.32,8.84604431]
[1734199165521,20.0,218.42,218.31,8.84604431]
[1734199165722,23.902374,218.41,218.3,8.84604431]
[1734199166645,23.902374,218.41,218.31,8.84604431]
[1734199166844,23.776884,218.41,218.31,8.84604431]
[1734199167049,20.0,218.42,218.33,8.84604431]
[1734199167050,20.0,218.39,218.33,8.84604431]
[1734199167346,23.902374,218.42,218.33,8.84604431]
[1734199170035,23.902374,218.42,218.32,8.84604431]
[1734199172066,43.902374,218.38,218.23,134.7]
[1734199172260,43.902374,218.38,218.24,38.84604431]
[1734199172552,21.7855,218.33,218.24,8.84604431]
[1734199172851,21.7855,218.33,218.23,8.84604431]
[1734199173249,1.7855,218.33,218.23,8.84604431]
[1734199173438,1.7855,218.33,218.24,8.84604431]
[1734199174048,1.7855,218.33,218.25,8.84604431]
[1734199177855,1.7855,218.33,218.27,8.84604431]
[1734199179195,1.7855,218.33,218.28,8.84604431]
[1734199179577,1.7855,218.33,218.27,8.84604431]
[1734199180171,1.7855,218.33,218.22,20.0]
[1734199180471,1.7855,218.33,218.26,8.84604431]
[1734199180993,1.7855,218.33,218.27,8.84604431]
[1734199182077,1.7855,218.33,218.26,8.84604431]
[1734199183082,1.7855,218.33,218.27,8.84604431]
[1734199184582,6.5977,218.37,218.28,8.84604431]
[1734199184779,15.443744,218.37,218.28,8.84604431]
[1734199187694,15.443744,218.37,218.27,8.84604431]
[1734199188795,15.443744,218.37,218.28,8.84604431]
[1734199189184,6.5977,218.37,218.28,8.84604431]
[1734199189393,15.443744,218.37,218.28,8.84604431]
[1734199191769,15.443744,218.37,218.23,0.12549]
[1734199191972,15.443744,218.37,218.28,8.84604431]
[1734199193469,15.443744,218.37,218.29,8.84604431]
[1734199193991,15.443744,218.37,218.28,8.84604431]
[1734199195301,6.5977,218.37,218.28,8.84604431]
[1734199195472,6.5977,218.37,218.23,30.0]
[1734199195675,23.902374,218.36,218.23,30.0]
[1734199195975,23.902374,218.36,218.24,8.84604431]
[1734199196691,20.0,218.33,218.22,30.0]
[1734199196876,23.902374,218.32,218.22,8.84604431]
[1734199197279,8.0768,218.31,218.21,8.84604431]
[1734199197991,8.0768,218.31,218.22,8.84604431]
[1734199198302,8.0768,218.31,218.25,50.0]
[1734199200592,20.0,218.28,218.25,50.0]
[1734199200997,23.902374,218.27,218.25,50.0]
[1734199201400,6.3832,218.26,218.25,50.0]
[1734199202505,1.6936,218.31,218.25,50.0]
[1734199203025,6.3832,218.32,218.26,8.84604431]
[1734199203183,6.3832,218.32,218.27,8.84604431]
[1734199203499,6.3832,218.32,218.25,58.84604431]
[1734199204283,6.3832,218.32,218.26,30.0]
[1734199205104,20.0,218.28,218.26,30.0]
[1734199205284,20.0,218.28,218.25,50.0]
[1734199206090,21.6936,218.28,218.25,50.0]
[1734199206296,23.902374,218.27,218.25,50.0]
[1734199206882,21.6936,218.28,218.25,50.0]
[1734199206883,1.6936,218.28,218.25,50.0]
[1734199208289,23.902374,218.27,218.25,50.0]
[1734199213008,0.12549,218.26,218.25,50.0]
[1734199213318,30.353664,218.26,218.25,50.0]
[1734199214189,30.228174,218.26,218.25,50.0]
[1734199215988,30.353664,218.26,218.25,50.0]
[1734199219301,30.353664,218.26,218.25,46.98092912]
[1734199219504,30.353664,218.26,218.25,22.70739318]
[1734199219819,20.0,218.19,218.18,21.08222954]
[1734199220123,43.902374,218.19,218.18,21.08222954]
[1734199222016,44.027864,218.19,218.18,21.08222954]
[1734199222216,43.902374,218.19,218.18,21.08222954]
[1734199230855,44.027864,218.19,218.18,21.08222954]
[1734199234360,50.472364,218.19,218.18,21.08222954]
[1734199235155,44.027864,218.19,218.18,21.08222954]
[1734199235327,43.902374,218.19,218.18,21.08222954]
[1734199237152,44.027864,218.19,218.18,21.08222954]
[1734199238571,43.902374,218.19,218.18,21.08222954]
[1734199240969,44.027864,218.19,218.18,21.08222954]
[1734199242955,6.78109556,218.28,218.18,21.08222954]
[1734199243144,18.330282,218.23,218.18,21.08222954]
[1734199243544,0.12549,218.22,218.18,21.08222954]
[1734199243755,6.78109556,218.28,218.18,21.08222954]
[1734199244082,18.328776,218.25,218.18,21.08222954]
[1734199244372,0.12549,218.24,218.18,21.08222954]
[1734199244878,18.328776,218.25,218.18,21.08222954]
[1734199245065,4.06729425,218.34,218.18,21.08222954]
[1734199245266,0.12549,218.27,218.18,21.08222954]
[1734199245567,18.326204,218.28,218.18,21.08222954]
[1734199245860,0.12549,218.27,218.18,21.08222954]
[1734199246249,20.0,218.25,218.18,21.08222954]
[1734199246454,0.12549,218.24,218.18,21.08222954]
[1734199247066,23.902374,218.24,218.18,21.08222954]
[1734199247848,0.12549,218.24,218.18,21.08222954]
[1734199248046,20.0,218.25,218.18,21.08222954]
[1734199248370,20.0,218.25,218.19,1.729]
[1734199250067,20.0,218.25,218.19,31.729]
[1734199251260,23.902374,218.24,218.19,31.729]
[1734199251475,23.902374,218.24,218.19,1.729]
[1734199256772,23.902374,218.27,218.19,1.729]
[1734199257360,0.12549,218.27,218.19,31.729]
[1734199258055,0.12549,218.24,218.19,30.0]
[1734199258253,0.25098,218.22,218.18,21.08222954]
[1734199258875,44.027864,218.22,218.18,21.08222954]
[1734199260553,24.027864,218.2,218.18,21.08222954]
[1734199266196,28.09515825,218.2,218.18,21.08222954]
[1734199268662,4.06729425,218.2,218.18,21.08222954]
[1734199268862,1.8750543,218.25,218.18,21.08222954]
[1734199269075,0.12549,218.24,218.18,21.08222954]
[1734199270205,44.027864,218.19,218.18,21.08222954]
[1734199273768,53.09515825,218.19,218.18,11.23585863]
[1734199274071,24.027864,218.14,218.06,0.5493292]
[1734199274403,0.12549,218.14,218.06,0.5493292]
[1734199274565,20.0,218.11,218.06,0.5493292]
[1734199275173,24.027864,218.14,218.06,0.5493292]
[1734199275604,20.0,218.11,218.06,0.5493292]
[1734199277295,19.5,218.11,218.06,0.5493292]
[1734199277900,0.12549,218.1,218.06,0.5493292]
[1734199279981,24.027864,218.1,218.06,0.5493292]
[1734199280183,20.12549,218.07,218.06,0.5493292]
[1734199280575,20.0,218.07,218.06,0.5493292]
[1734199281194,20.12549,218.07,218.06,0.5493292]
[1734199284407,4.06729425,218.18,218.07,1.8136]
[1734199284879,5.0,218.21,218.07,1.8136]
[1734199285214,0.12549,218.17,218.07,1.8136]
[1734199285507,4.06729425,218.2,218.07,1.8136]
[1734199286383,6.8015924,218.23,218.07,1.8136]
[1734199287078,0.12549,218.21,218.07,1.8136]
[1734199287279,6.8015924,218.23,218.07,1.8136]
[1734199287687,23.902374,218.17,218.07,1.8136]
[1734199287889,20.0,218.14,218.07,10.65964431]
[1734199288100,23.776884,218.17,218.08,30.0]
[1734199288487,9.06729425,218.25,218.08,30.0]
[1734199288823,4.06729425,218.25,218.1,8.05]
[1734199289023,6.2944,218.3,218.1,38.05]
[1734199289303,1.85955,218.29,218.1,38.05]
[1734199289805,0.12549,218.26,218.1,38.05]
[1734199290385,23.902374,218.26,218.1,38.05]
[1734199290781,1.85955,218.29,218.1,38.05]
[1734199290987,2.74849901,218.27,218.12,1.8136]
[1734199291307,0.12549,218.26,218.12,31.8136]
[1734199292206,20.0,218.23,218.12,31.8136]
[1734199292803,0.12549,218.22,218.12,31.8136]
[1734199293384,23.902374,218.22,218.12,31.8136]
[1734199295697,0.12549,218.22,218.12,31.8136]
[1734199300503,23.776884,218.25,218.12,40.65964431]
[1734199300687,4.06729425,218.31,218.14,1.8421]
[1734199300894,22.39477925,218.31,218.16,1.8421]
[1734199301713,0.12549,218.3,218.16,1.8421]
[1734199301898,24.027864,218.3,218.17,8.84604431]
[1734199302212,24.027864,218.3,218.16,31.8421]
[1734199303205,23.902374,218.26,218.16,38.84604431]
[1734199303414,23.902374,218.26,218.17,1.8421]
[1734199303603,23.902374,218.26,218.17,31.8421]
[1734199305605,23.902374,218.26,218.17,40.68814431]
[1734199306199,23.902374,218.26,218.17,31.8421]
[1734199307002,23.902374,218.26,218.17,40.68814431]
[1734199307314,23.902374,218.26,218.17,31.8421]
[1734199308803,23.902374,218.26,218.19,8.84604431]
[1734199309108,0.12549,218.26,218.19,30.0]
[1734199309906,23.776884,218.29,218.23,8.84604431]
[1734199310113,6.84611496,218.44,218.23,8.84604431]
[1734199310114,6.84611496,218.49,218.29,1.8319]
[1734199310320,5.0,218.51,218.36,8.84604431]
[1734199310820,6.8423235,218.51,218.36,8.84604431]
[1734199311004,0.12549,218.5,218.36,8.84604431]
[1734199311206,2.7724422,218.5,218.36,8.84604431]
[1734199311414,20.0,218.49,218.35,8.84604431]
[1734199311594,20.0,218.49,218.31,20.0]
[1734199311595,0.12549,218.48,218.31,20.0]
[1734199311800,0.12549,218.46,218.32,30.0]
[1734199312000,24.027864,218.46,218.32,38.84604431]
[1734199312318,24.027864,218.42,218.32,38.84604431]
[1734199312529,7.7724422,218.5,218.35,8.84604431]
[1734199312706,5.0,218.51,218.38,1.8319]
[1734199312911,1.81024215,218.52,218.38,1.8319]
[1734199313203,0.12549,218.52,218.38,1.8319]
[1734199313499,11.5234,218.53,218.38,1.8319]
[1734199313917,20.0,218.5,218.38,10.67794431]
[1734199314099,2.76392767,218.51,218.38,10.67794431]
[1734199314722,24.027864,218.5,218.38,10.67794431]
[1734199315014,24.027864,218.46,218.38,10.67794431]
[1734199315208,24.027864,218.46,218.38,40.67794431]
[1734199315411,20.0,218.52,218.4,8.84604431]
[1734199315616,20.0,218.54,218.4,8.84604431]
[1734199316209,0.12549,218.53,218.41,8.84604431]
[1734199316403,6.5234,218.57,218.43,8.84604431]
[1734199316605,23.306131,218.6,218.44,8.84604431]
[1734199316819,5.0,218.6,218.44,8.84604431]
[1734199317004,5.0,218.6,218.43,8.84604431]
[1734199317417,2.79588194,218.58,218.43,8.84604431]
[1734199317619,0.12549,218.56,218.4,30.0]
[1734199317807,0.12549,218.53,218.4,38.84604431]
[1734199318037,24.027864,218.53,218.44,8.84604431]
[1734199318212,5.0,218.61,218.45,1.9043]
[1734199319115,0.12549,218.6,218.45,31.9043]
[1734199319313,0.12549,218.6,218.45,40.75034431]
[1734199319515,20.25098,218.57,218.46,8.84604431]
[1734199319721,20.25098,218.57,218.47,6.4019]
[1734199320301,0.12549,218.57,218.47,6.4019]
[1734199320525,0.12549,218.59,218.47,45.24794431]
[1734199320726,0.25098,218.59,218.47,45.24794431]
[1734199321028,0.12549,218.59,218.47,45.24794431]
[1734199321729,20.0,218.64,218.48,8.84604431]
[1734199322027,0.199997,218.66,218.49,8.84604431]
[1734199322224,0.12549,218.65,218.5,8.84604431]
[1734199322801,0.199997,218.66,218.51,1.9043]
[1734199323001,0.199997,218.66,218.51,10.75034431]
[1734199323216,0.12549,218.65,218.51,10.75034431]
[1734199323430,0.12549,218.65,218.51,1.9043]
[1734199324004,20.0,218.64,218.51,40.75034431]
[1734199324351,0.199997,218.66,218.54,8.84604431]
[1734199324554,0.199997,218.66,218.58,1.9043]
[1734199325928,20.0,218.65,218.58,10.75034431]
[1734199326234,0.199997,218.66,218.58,40.75034431]
[1734199327118,0.199997,218.66,218.59,8.84604431]
[1734199327319,0.199997,218.66,218.6,8.84604431]
[1734199328054,0.199997,218.66,218.59,38.84604431]
[1734199328341,0.199997,218.66,218.61,8.84604431]
[1734199328637,0.199997,218.66,218.62,8.84604431]
[1734199329559,0.199997,218.66,218.62,30.0]
[1734199330046,11.0799,218.87,218.65,34.92954431]
[1734199330356,11.0799,218.87,218.67,8.84604431]
[1734199330357,0.12549,218.83,218.67,8.84604431]
[1734199330529,5.12549,218.83,218.67,30.0]
[1734199330725,0.12549,218.81,218.67,30.0]
[1734199331536,24.027864,218.81,218.67,38.84604431]
[1734199331735,20.0,218.78,218.67,30.0]
[1734199331936,20.0,218.74,218.65,14.92954431]
[1734199332145,20.0,218.74,218.66,30.0]
[1734199333083,20.0,218.74,218.66,38.84604431]
[1734199334131,23.902374,218.77,218.66,38.84604431]
[1734199334328,0.12549,218.77,218.67,8.84604431]
[1734199334533,2.4933292,218.84,218.69,8.84604431]
[1734199334745,0.12549,218.83,218.69,8.84604431]
[1734199335054,0.5493292,218.84,218.71,8.84604431]
[1734199335433,0.5493292,218.84,218.74,8.84604431]
[1734199335628,0.5493292,218.84,218.73,8.84604431]
[1734199336261,0.5493292,218.84,218.74,30.0]
[1734199337055,23.902374,218.83,218.7,1.8904]
[1734199337259,0.12549,218.79,218.71,30.0]
[1734199337537,20.0,218.76,218.71,30.0]
[1734199338137,20.0,218.76,218.7,1.8904]
[1734199338577,24.027864,218.75,218.7,1.8904]
[1734199338734,24.027864,218.71,218.64,1.8421]
[1734199339979,23.902374,218.73,218.64,1.8421]
[1734199340157,0.12549,218.69,218.64,1.8421]
[1734199344470,20.0,218.7,218.64,1.8421]
[1734199345349,1.9084,218.8,218.68,13.79186804]
[1734199345578,0.12549,218.82,218.68,13.79186804]
[1734199346585,0.12549,218.78,218.68,13.79186804]
[1734199346887,24.027864,218.78,218.68,13.79186804]
[1734199347091,20.0,218.75,218.68,13.79186804]
[1734199347305,6.442,218.83,218.7,13.79186804]
[1734199347578,6.442,218.83,218.71,13.79186804]
[1734199348276,0.12549,218.82,218.72,13.79186804]
[1734199348583,20.0,218.8,218.72,13.79186804]
[1734199348766,20.0,218.8,218.71,13.79186804]
[1734199349278,0.12549,218.79,218.71,13.79186804]
[1734199350179,23.902374,218.79,218.69,14.47765249]
[1734199350356,23.902374,218.79,218.68,13.79186804]
[1734199350557,23.902374,218.79,218.69,30.0]
[1734199351376,0.12549,218.79,218.7,13.79186804]
[1734199351777,0.12549,218.79,218.71,13.79186804]
[1734199352496,0.12549,218.78,218.69,13.79186804]
[1734199352676,0.12549,218.75,218.66,13.79186804]
[1734199352980,24.027864,218.75,218.65,13.79186804]
[1734199353759,0.12549,218.75,218.65,13.79186804]
[1734199354062,0.12549,218.75,218.64,1.8421]
[1734199354667,0.12549,218.75,218.67,13.79186804]
[1734199354981,0.12549,218.79,218.7,13.79186804]
[1734199355284,6.442,218.83,218.7,13.79186804]
[1734199355785,0.12549,218.82,218.7,13.79186804]
[1734199356284,0.12549,218.82,218.69,13.79186804]
[1734199356664,20.0,218.79,218.69,13.79186804]
[1734199356869,0.12549,218.78,218.69,13.79186804]
[1734199357464,20.0,218.75,218.65,30.0]
[1734199357664,23.902374,218.74,218.65,30.0]
[1734199357968,23.902374,218.74,218.64,1.8421]
[1734199357969,20.0,218.71,218.64,1.8421]
[1734199358569,20.0,218.71,218.64,15.63396804]
[1734199359492,20.0,218.71,218.64,1.8421]
[1734199359662,20.0,218.71,218.63,13.79186804]
[1734199359990,0.12549,218.7,218.61,13.79186804]
[1734199360489,0.12549,218.7,218.6,33.79186804]
[1734199360687,24.027864,218.7,218.6,30.0]
[1734199360878,0.12549,218.66,218.56,13.79186804]
[1734199361672,0.12549,218.66,218.57,30.0]
[1734199361867,0.12549,218.66,218.56,13.79186804]
[1734199362069,0.12549,218.7,218.58,13.79186804]
[1734199362276,20.0,218.67,218.6,13.79186804]
[1734199362597,20.0,218.67,218.59,13.79186804]
[1734199362888,0.12549,218.66,218.56,13.79186804]
[1734199363126,0.12549,218.66,218.59,13.79186804]
[1734199363276,0.12549,218.66,218.58,13.79186804]
[1734199363775,0.12549,218.66,218.57,43.79186804]
[1734199363980,0.12549,218.66,218.57,13.79186804]
[1734199364183,0.12549,218.66,218.58,13.79186804]
[1734199364376,20.0,218.67,218.6,13.79186804]
[1734199365290,23.776884,218.7,218.6,13.79186804]
[1734199365291,0.12549,218.69,218.6,13.79186804]
[1734199366385,20.0,218.71,218.62,13.79186804]
[1734199366595,6.4909,218.74,218.63,13.79186804]
[1734199368077,0.12549,218.72,218.63,13.79186804]
[1734199368279,0.12549,218.73,218.63,13.79186804]
[1734199368477,23.902374,218.73,218.64,13.79186804]
[1734199370107,23.902374,218.73,218.63,13.79186804]
[1734199370395,23.902374,218.73,218.64,13.79186804]
[1734199370622,23.902374,218.73,218.65,13.79186804]
[1734199370623,0.12549,218.73,218.65,13.79186804]
[1734199372095,0.12549,218.73,218.66,13.79186804]
[1734199372278,6.4909,218.74,218.67,13.79186804]
[1734199372478,6.4909,218.78,218.68,13.79186804]
[1734199372703,6.6252,218.79,218.71,13.79186804]
[1734199372910,6.6252,218.79,218.7,13.79186804]
[1734199373988,0.12549,218.78,218.7,13.79186804]
[1734199374799,23.902374,218.78,218.68,13.79186804]
[1734199374998,23.902374,218.78,218.69,30.0]
[1734199375200,23.902374,218.78,218.65,0.68568871]
[1734199375201,23.902374,218.78,218.67,13.79186804]
[1734199375414,0.12549,218.78,218.69,13.79186804]
[1734199376926,0.12549,218.78,218.65,0.68569465]
[1734199376927,6.6252,218.79,218.71,13.79186804]
[1734199377294,20.0,218.81,218.72,13.79186804]
[1734199377607,13.7590292,218.84,218.72,13.79186804]
[1734199377608,7.1338292,218.84,218.72,13.79186804]
[1734199378795,23.902374,218.83,218.73,13.79186804]
[1734199380008,23.902374,218.83,218.74,13.79186804]
[1734199380215,23.902374,218.83,218.73,13.79186804]
[1734199381118,23.902374,218.83,218.72,13.79186804]
[1734199381610,0.12549,218.82,218.7,13.79186804]
[1734199381820,20.0,218.8,218.7,13.79186804]
[1734199382013,24.027864,218.79,218.68,13.79186804]
[1734199382314,24.027864,218.79,218.69,30.0]
[1734199382692,0.12549,218.75,218.67,13.79186804]
[1734199383200,0.12549,218.75,218.68,13.79186804]
[1734199383421,0.12549,218.73,218.64,13.79186804]
[1734199383630,0.12549,218.73,218.63,13.79186804]
[1734199383631,23.902374,218.73,218.63,13.79186804]
[1734199383824,0.12549,218.72,218.61,13.79186804]
[1734199384003,0.12549,218.69,218.6,13.79186804]
[1734199385326,0.12549,218.69,218.61,13.79186804]
[1734199385527,0.12549,218.69,218.62,13.79186804]
[1734199385702,0.12549,218.72,218.58,20.68598218]
[1734199385703,0.12549,218.73,218.66,13.79186804]
[1734199386016,41.62770233,218.84,218.69,13.79186804]
[1734199386017,8.402,218.81,218.69,13.79186804]
[1734199386216,8.402,218.81,218.7,13.79186804]
[1734199386408,8.402,218.81,218.68,13.79186804]
[1734199386628,0.12549,218.8,218.68,13.79186804]
[1734199386800,8.402,218.81,218.67,13.79186804]
[1734199387330,0.25098,218.77,218.67,13.79186804]
[1734199387520,0.25098,218.77,218.66,13.79186804]
[1734199387732,0.25098,218.77,218.65,43.79186804]
[1734199388031,0.12549,218.73,218.62,13.79186804]
[1734199388204,0.12549,218.72,218.62,13.79186804]
[1734199388419,6.5845,218.71,218.62,13.79186804]
[1734199388632,0.12549,218.7,218.62,13.79186804]
[1734199389027,6.5845,218.71,218.64,13.79186804]
[1734199389228,6.70999,218.76,218.68,13.79186804]
[1734199389517,6.5845,218.76,218.68,13.79186804]
[1734199389721,6.5845,218.76,218.65,13.79186804]
[1734199390116,6.5845,218.76,218.66,13.79186804]
[1734199390507,23.776884,218.75,218.66,13.79186804]
[1734199390817,0.12549,218.74,218.66,13.79186804]
[1734199391212,0.12549,218.74,218.65,13.79186804]
[1734199392305,0.12549,218.74,218.63,0.68581506]
[1734199392306,0.25098,218.74,218.63,13.79186804]
[1734199392502,1.8175,218.73,218.64,30.0]
[1734199392711,44.027864,218.72,218.64,30.0]
[1734199392907,44.027864,218.72,218.62,20.0]
[1734199393314,44.027864,218.72,218.59,13.79186804]
[1734199394222,44.027864,218.72,218.61,13.79186804]
[1734199394522,44.027864,218.72,218.62,13.79186804]
[1734199396021,0.12549,218.72,218.65,13.79186804]
[1734199396215,1.8175,218.73,218.67,13.79186804]
[1734199396603,1.8175,218.73,218.66,13.79186804]
[1734199397230,6.5845,218.76,218.69,13.79186804]
[1734199397731,6.5845,218.76,218.68,13.79186804]
[1734199398432,6.5845,218.76,218.69,13.79186804]
[1734199400515,6.5845,218.76,218.7,13.79186804]
[1734199401805,6.5845,218.76,218.69,13.79186804]
[1734199402028,0.12549,218.75,218.67,13.79186804]
[1734199402224,0.12549,218.75,218.68,30.0]
[1734199402514,0.12549,218.75,218.67,13.79186804]
[1734199403728,24.027864,218.75,218.65,13.79186804]
[1734199404110,24.027864,218.75,218.64,13.79186804]
[1734199404314,0.25098,218.71,218.65,30.0]
[1734199404522,24.027864,218.71,218.65,30.0]
[1734199404746,24.027864,218.71,218.6,13.79186804]
[1734199405031,0.25098,218.69,218.6,13.79186804]
[1734199405235,24.027864,218.69,218.6,13.79186804]
[1734199407015,24.027864,218.69,218.59,13.79186804]